bitfinex-derivatives/quotes_ETHF0:USTF0_20250804
["timestamp","ask_amount","ask_price","bid_price","bid_amount"]
[1754272368852,4.36091,3540.0,3539.9,3.2078]
[1754272369050,0.56495,3539.7,3539.6,2.52299708]
[1754272369353,4.36095,3539.7,3539.6,2.52299708]
[1754272369849,3.796,3539.7,3539.6,3.50299708]
[1754272370155,3.796,3539.7,3539.6,4.42147]
[1754272370759,0.56494,3539.9,3539.8,2.11954]
[1754272370760,1.5639,3539.9,3539.8,2.11954]
[1754272370949,1.8657,3540.1,3540.0,0.56491]
[1754272371155,2.9847,3540.1,3540.0,2.11951]
[1754272371356,3.796,3540.1,3540.0,3.76761]
[1754272371552,3.796,3540.1,3540.0,3.8565]
[1754272371757,0.98,3540.1,3540.0,3.8565]
[1754272372158,3.796,3540.3,3540.2,1.5546]
[1754272372363,3.796,3540.3,3540.1,0.56489]
[1754272372364,1.7913,3540.7,3540.6,2.7261]
[1754272372560,2.9876,3540.7,3540.6,3.8565]
[1754272373061,3.796,3540.7,3540.6,3.8565]
[1754272373262,3.796,3540.7,3540.6,4.42131]
[1754272373460,3.796,3540.7,3540.6,3.8565]
[1754272373661,4.36079,3540.7,3540.6,3.8565]
[1754272374259,3.796,3540.7,3540.6,3.8565]
[1754272374654,0.98,3541.0,3540.9,0.56476]
[1754272374861,1.7913,3541.0,3540.9,4.42126]
[1754272375160,2.3752,3541.0,3540.9,4.42126]
[1754272375856,7.0038,3541.3,3541.2,3.8565]
[1754272376159,7.5685,3541.3,3541.2,3.8565]
[1754272376361,7.0038,3541.3,3541.2,3.8565]
[1754272376855,3.796,3541.3,3541.2,3.8565]
[1754272378356,2.9876,3541.3,3541.2,3.8565]
[1754272379262,1.5639,3541.4,3541.3,1.5546]
[1754272379464,2.3752,3541.4,3541.3,1.5546]
[1754272379864,2.9876,3541.4,3541.3,1.5546]
[1754272380162,2.9876,3541.4,3541.3,3.8565]
[1754272380358,3.796,3541.4,3541.3,3.8565]
[1754272380961,1.5639,3540.8,3540.7,5.3272]
[1754272381162,3.796,3540.8,3540.7,7.6291]
[1754272384263,1.2562,3541.1,3541.0,0.56475]
[1754272384568,2.3752,3541.1,3541.0,3.58995]
[1754272384771,1.5639,3540.9,3540.8,2.4506]
[1754272384963,3.796,3540.9,3540.8,2.4506]
[1754272385269,4.36076,3540.9,3540.8,2.4506]
[1754272385566,3.796,3540.8,3540.7,3.2078]
[1754272385758,3.796,3540.8,3540.1,4.60398]
[1754272386067,3.2078,3541.2,3540.1,7.62918]
[1754272386068,3.796,3540.2,3540.1,7.62918]
[1754272387369,3.796,3540.2,3540.1,6.233]
[1754272387670,3.796,3540.2,3540.1,7.0643]
[1754272388665,3.796,3540.2,3540.1,3.2078]
[1754272389064,3.796,3540.2,3540.1,6.79789]
[1754272389271,3.796,3540.2,3540.1,7.62919]
[1754272389768,3.796,3540.2,3540.1,7.0643]
[1754272390167,3.796,3540.2,3540.1,3.2078]
[1754272390366,3.796,3539.9,3539.8,0.5558]
[1754272390765,3.2078,3540.4,3539.6,3.2078]
[1754272390766,1.5639,3539.7,3539.6,3.2078]
[1754272390968,3.796,3539.7,3539.6,3.2078]
[1754272391269,3.796,3539.7,3539.6,6.233]
[1754272391768,3.796,3539.7,3539.6,7.0643]
[1754272392266,3.796,3539.7,3539.6,3.2078]
[1754272392267,4.36095,3539.7,3539.6,3.2078]
[1754272392966,3.796,3539.7,3539.6,3.2078]
[1754272393269,3.796,3539.7,3539.6,0.5558]
[1754272393465,3.796,3539.7,3539.4,0.6538]
[1754272393466,0.56497,3539.6,3539.4,0.6538]
[1754272393671,3.796,3539.5,3539.4,1.6338]
[1754272393966,2.1289,3539.5,3539.1,0.56504]
[1754272394170,1.5611,3539.2,3539.1,2.96544]
[1754272394371,3.9173,3539.2,3539.1,4.36854]
[1754272394568,3.9173,3539.2,3539.1,2.4004]
[1754272395371,0.6248,3539.9,3539.5,0.56498]
[1754272395563,4.48227,3539.6,3539.5,3.8035]
[1754272395967,4.48227,3539.6,3539.5,2.9417]
[1754272396172,3.9173,3539.6,3539.5,2.9417]
[1754272396374,3.9173,3539.6,3539.5,3.8035]
[1754272397774,3.9173,3539.6,3539.5,1.7672]
[1754272398273,3.9173,3539.6,3539.5,0.9316]
[1754272398867,3.9173,3539.6,3539.5,2.4004]
[1754272400276,1.5611,3539.6,3539.5,2.9417]
[1754272400476,1.5611,3539.6,3539.5,3.8035]
[1754272400876,3.9173,3539.6,3539.5,2.9417]
[1754272401177,3.9173,3539.3,3539.2,3.8035]
[1754272402076,3.9173,3539.3,3539.2,0.9316]
[1754272403175,0.56508,3538.9,3538.8,3.2078]
[1754272403378,1.5611,3538.7,3538.6,2.9417]
[1754272403576,3.9173,3538.7,3538.6,2.9417]
[1754272404478,3.9173,3538.7,3538.6,1.7672]
[1754272404678,0.582,3538.5,3538.4,3.2078]
[1754272404881,3.9173,3538.5,3538.4,3.2078]
[1754272405280,3.9173,3538.5,3538.4,3.7393]
[1754272405481,3.9173,3538.5,3538.4,3.2078]
[1754272406685,2.12625,3538.6,3538.5,3.8035]
[1754272406982,4.48245,3538.6,3538.5,2.9417]
[1754272407284,1.5611,3538.5,3538.4,3.2078]
[1754272407476,3.9173,3538.5,3538.4,4.1394]
[1754272407682,3.9173,3538.5,3538.4,5.6082]
[1754272408082,3.9173,3538.5,3538.4,4.1394]
[1754272408884,3.9173,3538.5,3538.4,5.6082]
[1754272409278,3.9173,3538.5,3538.4,7.0113]
[1754272409481,2.40489,3538.9,3538.5,1.4688]
[1754272409682,3.9173,3538.9,3538.8,2.9417]
[1754272409885,3.9173,3538.9,3538.8,3.8035]
[1754272410481,4.48238,3538.9,3538.8,3.8035]
[1754272410684,3.9173,3538.9,3538.8,3.8035]
[1754272410986,3.9173,3538.9,3538.8,2.9417]
[1754272411187,3.9173,3538.9,3538.6,0.56512]
[1754272411188,3.9173,3538.5,3538.4,0.9316]
[1754272411383,2.1859,3538.5,3538.4,0.5315]
[1754272411685,2.12626,3538.5,3538.4,0.5315]
[1754272411879,1.5611,3538.3,3538.2,0.9316]
[1754272412085,1.5611,3538.3,3538.2,2.9417]
[1754272412283,2.1859,3538.3,3538.2,3.8035]
[1754272412482,3.9173,3538.3,3538.2,3.8035]
[1754272412884,2.4218,3538.3,3538.2,3.8035]
[1754272413082,2.0022,3538.3,3538.2,3.8035]
[1754272413285,0.5595,3538.3,3538.2,3.8035]
[1754272413887,2.4218,3538.3,3538.2,3.8035]
[1754272414291,3.0466,3538.3,3538.2,3.8035]
[1754272414585,1.4955,3538.6,3538.3,0.56518]
[1754272414786,1.5611,3538.7,3538.6,3.8035]
[1754272414990,3.0566,3538.7,3538.6,3.8035]
[1754272415292,3.9173,3538.7,3538.6,3.8035]
[1754272415992,4.48242,3538.7,3538.6,3.8035]
[1754272416289,3.0466,3538.7,3538.6,2.3347]
[1754272416488,2.4218,3538.7,3538.6,3.8035]
[1754272417987,0.56511,3538.8,3538.6,3.8035]
[1754272418292,3.61168,3539.0,3538.9,3.8035]
[1754272418491,4.48238,3539.0,3538.7,0.56511]
[1754272418692,4.48238,3539.0,3538.9,0.9316]
[1754272418998,4.48242,3538.7,3538.6,3.8035]
[1754272419199,4.48242,3538.7,3538.6,2.9417]
[1754272419396,0.56515,3538.5,3538.4,4.1394]
[1754272419698,4.48245,3538.5,3538.4,2.9417]
[1754272420095,2.1263,3538.2,3538.1,3.8035]
[1754272420293,3.9173,3538.2,3538.1,3.8035]
[1754272421289,3.9173,3538.2,3538.1,0.5315]
[1754272421595,3.9173,3538.0,3537.9,6.62573841]
[1754272421792,3.9173,3538.0,3537.9,7.16703841]
[1754272422500,3.9173,3538.0,3537.9,8.02883841]
[1754272424901,3.9173,3538.0,3537.9,5.15693841]
[1754272425092,3.9173,3538.0,3537.9,6.61543841]
[1754272425597,3.9173,3538.0,3537.9,7.93593841]
[1754272425793,2.2976,3538.4,3538.3,1.4571]
[1754272426003,3.2078,3538.7,3538.6,4.27393]
[1754272426198,6.0895,3538.7,3538.6,3.7088]
[1754272426398,2.8817,3538.7,3538.6,3.7088]
[1754272426901,1.4547,3539.3,3539.2,1.4571]
[1754272427400,2.2431,3539.3,3539.2,1.4571]
[1754272427602,0.3976,3539.3,3539.2,3.7088]
[1754272427992,3.086,3539.6,3539.5,3.0763]
[1754272428302,3.7246,3539.6,3539.5,3.7088]
[1754272428603,2.2431,3539.6,3539.5,3.7088]
[1754272428795,1.4547,3539.6,3539.5,3.7088]
[1754272429101,3.7246,3539.6,3539.5,3.7088]
[1754272429299,3.7246,3539.6,3539.5,2.9156]
[1754272429497,1.0571,3539.3,3539.2,1.3582]
[1754272429700,1.4547,3539.1,3539.0,0.5322]
[1754272429997,0.5354,3538.9,3538.8,1.3582]
[1754272430202,3.7246,3538.9,3538.8,2.9156]
[1754272430505,3.7246,3538.9,3538.8,3.7088]
[1754272430709,2.8817,3538.6,3538.5,5.86254]
[1754272431007,2.2431,3538.8,3538.7,2.0222]
[1754272431397,2.8817,3538.8,3538.7,2.0222]
[1754272431703,3.7246,3538.8,3538.7,4.2739]
[1754272432800,3.7246,3538.8,3538.7,3.7088]
[1754272435300,4.28964,3539.2,3539.1,3.7088]
[1754272435496,0.56504,3539.2,3539.1,2.2831]
[1754272435705,0.9193,3539.2,3539.1,4.27384]
[1754272436002,2.8817,3539.7,3539.6,1.4571]
[1754272436301,3.64612865,3539.7,3539.6,2.8828]
[1754272436508,4.48902865,3539.7,3539.6,4.27377]
[1754272436703,4.48902865,3539.7,3539.6,3.7088]
[1754272437008,4.48902865,3539.7,3539.6,4.27377]
[1754272437205,3.7246,3539.7,3539.6,3.7088]
[1754272438600,1.4547,3539.7,3539.6,3.7088]
[1754272439206,2.2431,3539.7,3539.6,3.7088]
[1754272439506,0.933,3539.7,3539.6,3.7088]
[1754272439811,1.7214,3539.7,3539.6,3.7088]
[1754272440108,2.2431,3539.7,3539.6,3.7088]
[1754272440509,2.8817,3539.7,3539.6,3.7088]
[1754272441007,3.7246,3539.7,3539.6,3.7088]
[1754272441403,3.7246,3539.4,3539.3,3.2078]
[1754272441703,3.7246,3539.4,3539.3,3.74]
[1754272441909,3.7246,3539.4,3539.3,4.566]
[1754272442110,3.7246,3539.4,3539.3,6.9166]
[1754272442308,2.2431,3539.4,3539.3,6.9166]
[1754272442911,2.8817,3539.4,3539.3,6.9166]
[1754272443910,3.7246,3539.4,3539.3,6.9166]
[1754272445506,3.2078,3540.3,3539.5,3.66418]
[1754272445808,6.0895,3540.3,3540.2,3.7088]
[1754272446611,6.9324,3540.3,3540.2,3.7088]
[1754272447011,3.7246,3540.3,3540.2,3.7088]
[1754272447412,3.7246,3540.3,3540.2,2.9156]
[1754272447715,3.7246,3540.1,3540.0,3.4805]
[1754272448012,3.7246,3540.1,3540.0,4.2737]
[1754272449006,1.4547,3540.2,3539.8,3.2078]
[1754272449207,3.2029,3540.1,3540.0,1.9907]
[1754272449507,3.7246,3540.1,3540.0,2.9156]
[1754272450308,3.7246,3540.1,3540.0,2.2831]
[1754272450503,1.0571,3539.9,3539.7,2.02345]
[1754272450707,3.2078,3540.5,3539.7,4.27375]
[1754272450708,3.7246,3539.8,3539.7,4.27375]
[1754272450904,2.2976,3539.8,3539.6,0.56496]
[1754272451108,3.7246,3539.7,3539.6,1.09716]
[1754272451515,3.7246,3539.7,3539.6,0.5322]
[1754272452010,2.0933,3539.5,3539.4,3.74]
[1754272452211,3.7246,3539.5,3539.4,3.74]
[1754272452412,4.28959,3539.5,3539.4,3.74]
[1754272452610,1.4547,3539.2,3539.1,19.56]
[1754272452914,1.4547,3539.2,3539.1,22.4756]
[1754272452915,3.7246,3539.2,3539.1,22.4756]
[1754272453614,4.28964,3539.2,3539.0,22.7668]
[1754272453812,1.4547,3539.2,3539.0,22.7668]
[1754272454011,3.7105,3539.1,3539.0,26.418]
[1754272455017,2.02469,3539.5,3539.4,1.4799]
[1754272455220,2.02469,3539.5,3539.4,2.2679]
[1754272455711,2.81509,3539.5,3539.4,0.5679]
[1754272456019,3.7105,3539.5,3539.4,0.5679]
[1754272456220,3.7105,3539.5,3539.4,1.1329]
[1754272456412,3.7105,3539.5,3539.4,2.8591]
[1754272457014,2.86511,3540.0,3539.9,0.5679]
[1754272457213,4.27541,3540.0,3539.9,0.5679]
[1754272457418,4.27541,3540.0,3539.5,2.1713]
[1754272457419,3.2078,3540.1,3539.7,0.56496]
[1754272457618,6.02349,3540.1,3540.0,3.6512]
[1754272457814,5.18299,3540.1,3540.0,3.6512]
[1754272458016,6.0778,3540.1,3540.0,3.6512]
[1754272458716,5.4579,3540.1,3540.0,3.6512]
[1754272458916,5.4579,3540.1,3540.0,4.21611]
[1754272459818,5.4579,3540.1,3540.0,3.6512]
[1754272460218,2.2501,3540.1,3540.0,3.6512]
[1754272460620,3.7105,3539.8,3539.7,2.1713]
[1754272460820,3.7105,3539.8,3539.7,2.7392]
[1754272461125,3.7105,3539.8,3539.7,3.6512]
[1754272461625,2.2501,3539.8,3539.7,3.6512]
[1754272462127,3.7105,3539.8,3539.7,2.8591]
[1754272462333,3.7105,3539.8,3539.7,2.2679]
[1754272462625,3.7105,3539.8,3539.7,2.8591]
[1754272462825,3.7105,3539.8,3539.7,3.6512]
[1754272463130,2.87,3539.8,3539.7,3.6512]
[1754272463318,0.7904,3540.0,3539.8,2.1713]
[1754272463522,2.2501,3540.0,3539.9,4.21611]
[1754272463725,0.9368,3540.0,3539.9,4.21611]
[1754272464130,0.9368,3540.0,3539.9,3.6512]
[1754272464325,1.4597,3540.0,3539.9,3.6512]
[1754272464530,2.2501,3540.0,3539.9,3.6512]
[1754272464927,1.4597,3540.0,3539.9,3.6512]
[1754272465127,0.9368,3540.0,3539.9,3.6512]
[1754272465328,0.6199,3540.1,3540.0,2.04481]
[1754272465641,6.0778,3540.2,3540.1,3.6512]
[1754272466826,3.7105,3540.2,3540.1,3.6512]
[1754272467027,0.56485,3540.4,3540.1,4.21608]
[1754272467220,2.87,3540.3,3540.2,3.6512]
[1754272467630,3.7105,3540.3,3540.2,3.6512]
[1754272470333,3.7105,3540.3,3540.2,0.5679]
[1754272470739,3.7105,3540.3,3540.2,1.92078]
[1754272471034,3.7105,3540.3,3540.2,1.9471]
[1754272471236,3.7105,3540.3,3540.2,3.6512]
[1754272471536,2.87,3540.3,3540.2,3.6512]
[1754272472628,3.7105,3540.3,3540.2,3.6512]
[1754272475640,3.7105,3540.3,3540.2,2.8591]
[1754272476137,3.7105,3540.1,3540.0,3.7757]
[1754272476336,1.7272,3540.1,3540.0,3.7757]
[1754272476537,3.48498,3540.2,3540.1,4.21609]
[1754272477241,4.27538,3540.2,3540.1,3.6512]
[1754272478039,3.7105,3540.2,3540.1,3.6512]
[1754272480837,6.07276,3540.9,3540.8,0.5679]
[1754272481040,6.25108357,3540.9,3540.8,0.5679]
[1754272481245,6.25108357,3540.9,3540.8,1.3559]
[1754272481543,7.66138357,3540.9,3540.8,3.6512]
[1754272482846,7.66138357,3540.9,3540.8,2.8591]
[1754272483155,7.66138357,3540.9,3540.8,2.2679]
[1754272483755,4.45358357,3540.9,3540.8,2.2679]
[1754272485258,0.17843129,3540.9,3540.7,3.15905334]
[1754272485552,3.6781,3541.3,3541.2,3.6451]
[1754272485759,3.85650863,3541.3,3541.2,3.6451]
[1754272487244,1.12090863,3541.3,3541.2,3.6451]
[1754272487444,3.06010863,3541.3,3541.2,3.6451]
[1754272487945,0.56461,3541.9,3541.8,1.0907]
[1754272488145,1.66836751,3541.9,3541.8,3.4951]
[1754272488453,3.06016751,3541.9,3541.8,3.4951]
[1754272488649,1.12976751,3541.9,3541.8,3.4951]
[1754272488849,1.66836751,3541.9,3541.8,3.4951]
[1754272489151,3.06016751,3541.9,3541.8,3.4951]
[1754272489653,3.85656751,3541.9,3541.8,3.4951]
[1754272490851,0.9425,3541.3,3541.2,4.1558]
[1754272491155,3.6781,3541.3,3541.2,5.9163]
[1754272491347,3.6781,3541.3,3541.2,6.7029]
[1754272492253,3.6781,3541.3,3541.2,7.26762]
[1754272492443,2.8817,3541.3,3541.2,7.26762]
[1754272492645,2.8817,3541.3,3541.2,6.7029]
[1754272494054,3.6781,3541.3,3541.2,6.7029]
[1754272494949,3.6781,3541.3,3541.2,3.2078]
[1754272495151,3.6781,3541.3,3540.8,20.3186]
[1754272495152,1.4899,3540.9,3540.8,25.0166]
[1754272495351,3.6781,3540.9,3540.8,26.2589]
[1754272495752,2.8817,3540.9,3540.8,26.2589]
[1754272496054,0.9513,3540.9,3540.8,26.2589]
[1754272496451,0.4039,3540.9,3540.8,26.2589]
[1754272496755,0.56474,3541.1,3540.8,26.2589]
[1754272496952,1.4899,3541.1,3541.0,4.05985]
[1754272497152,0.9513,3541.2,3541.1,1.10693]
[1754272497347,0.9513,3541.2,3541.1,3.4951]
[1754272497654,2.2585,3541.2,3541.1,3.4951]
[1754272498043,0.56469,3541.4,3541.3,1.4902]
[1754272498243,3.44639,3541.4,3541.3,3.4951]
[1754272498452,4.24279,3541.4,3541.3,3.4951]
[1754272499146,3.2078,3541.6,3540.9,3.15905334]
[1754272499147,4.24285,3541.0,3540.9,6.65415334]
[1754272499848,4.24285,3541.0,3540.9,3.4951]
[1754272500047,2.1882,3540.9,3540.8,22.7568]
[1754272500353,3.6781,3540.9,3540.8,24.0919]
[1754272500750,3.6781,3540.9,3540.8,24.5476]
[1754272501052,3.6781,3540.9,3540.8,24.0919]
[1754272501547,1.4899,3540.5,3540.4,4.5429]
[1754272501748,3.6781,3540.5,3540.4,26.2519]
[1754272504555,3.6781,3540.5,3540.4,3.7563]
[1754272504757,3.6781,3540.5,3540.4,22.7568]
[1754272506458,3.6781,3540.5,3540.4,3.2078]
[1754272508159,1.4899,3540.2,3540.1,1.3351]
[1754272508353,1.4899,3540.2,3540.1,20.8851]
[1754272508354,3.6781,3540.2,3540.1,20.8851]
[1754272508552,4.24298,3540.2,3540.1,0.5485]
[1754272508858,4.24298,3540.2,3539.8,4.53533]
[1754272508859,3.6781,3539.9,3539.8,3.7563]
[1754272509060,3.6781,3539.9,3539.8,24.0929]
[1754272509260,3.6781,3539.9,3539.8,26.2403]
[1754272510058,3.6781,3539.9,3539.8,6.6903]
[1754272510259,3.6781,3539.9,3539.8,23.3073]
[1754272510461,3.6781,3539.9,3539.8,24.0939]
[1754272510653,3.6781,3539.9,3539.8,26.2413]
[1754272514362,0.8066,3540.0,3539.9,3.98122]
[1754272514770,1.7402,3540.0,3539.9,3.4163]
[1754272514961,3.5997,3540.0,3539.9,22.9673]
[1754272516166,3.5997,3540.0,3539.9,21.7733]
[1754272516363,0.565,3539.5,3539.4,3.2078]
[1754272516564,3.5997,3539.5,3539.4,26.1761]
[1754272516865,2.8142,3539.5,3539.4,26.1761]
[1754272517259,2.2503,3539.5,3539.4,26.1761]
[1754272517456,0.7855,3539.7,3539.5,0.56499]
[1754272517667,3.0358,3539.7,3539.6,25.69145334]
[1754272517867,3.5997,3539.7,3539.6,26.12735334]
[1754272518671,3.5997,3539.7,3539.6,22.9683]
[1754272520973,3.5997,3539.7,3539.6,22.9693]
[1754272521870,0.3899,3539.7,3539.6,26.12835334]
[1754272522272,2.2503,3539.7,3539.6,26.12835334]
[1754272522469,2.8142,3539.7,3539.6,26.12835334]
[1754272522662,3.5997,3539.7,3539.6,22.9693]
[1754272522863,3.5997,3539.7,3539.6,2.6582]
[1754272523176,3.5997,3539.7,3539.6,22.9683]
[1754272529077,3.5997,3539.7,3539.6,22.2102]
[1754272529278,3.5997,3539.5,3539.4,22.7588]
[1754272529771,3.5997,3539.5,3539.4,24.0587]
[1754272530779,3.5997,3539.5,3539.4,4.5077]
[1754272530980,3.5997,3539.5,3539.4,3.2078]
[1754272532480,0.56497,3539.6,3539.3,19.551]
[1754272532481,4.1647,3539.4,3539.3,19.551]
[1754272532686,3.5997,3539.1,3539.0,5.07276]
[1754272532982,3.5997,3539.1,3539.0,25.05866]
[1754272533280,3.5997,3539.1,3539.0,26.73916]
[1754272533483,3.5997,3539.1,3539.0,26.1741]
[1754272533678,3.5997,3539.1,3539.0,6.6241]
[1754272533880,3.5997,3539.1,3539.0,26.1741]
[1754272534180,3.5997,3539.1,3539.0,4.5077]
[1754272534484,3.5997,3539.1,3539.0,3.2078]
[1754272534780,3.5997,3538.9,3538.8,0.5394]
[1754272534980,1.4437,3538.6,3538.5,3.2078]
[1754272535186,3.5997,3538.3,3538.2,1.7358]
[1754272535386,4.16488,3538.3,3538.2,21.2858]
[1754272535788,3.5997,3538.2,3538.1,20.8499]
[1754272536380,3.5997,3538.2,3538.1,0.5394]
[1754272536679,1.4437,3538.0,3537.9,1.55693841]
[1754272536982,3.5997,3538.0,3537.9,21.10693841]
[1754272537282,3.5997,3538.0,3537.9,1.55693841]
[1754272537588,3.5997,3538.3,3538.2,2.2223]
[1754272537885,1.1965,3538.5,3538.4,3.4163]
[1754272538084,4.16478,3538.9,3538.8,3.4163]
[1754272538479,4.16478,3538.9,3538.8,1.2999]
[1754272538785,3.5997,3538.5,3538.4,3.4163]
[1754272539785,2.8142,3538.5,3538.4,3.98146]
[1754272540785,2.8142,3538.5,3538.4,3.4163]
[1754272540982,3.5997,3538.5,3538.4,3.4163]
[1754272541885,3.5997,3538.5,3538.4,0.5394]
[1754272542085,3.5997,3538.5,3538.4,1.7358]
[1754272542284,3.5997,3538.5,3538.4,3.4163]
[1754272542488,1.93561,3538.8,3538.5,0.56515]
[1754272542684,4.16481,3538.8,3538.7,3.4163]
[1754272543687,4.16481,3538.8,3538.7,2.6582]
[1754272544387,3.2078,3539.0,3538.9,1.0309]
[1754272544582,1.3436,3539.4,3539.2,0.56504]
[1754272544787,1.3436,3539.4,3539.1,3.3187]
[1754272544788,3.0216,3539.4,3539.3,1.4251]
[1754272545086,3.5253,3539.4,3539.3,1.4251]
[1754272545481,3.5253,3539.4,3539.3,2.589]
[1754272545686,3.5253,3539.4,3539.3,3.3187]
[1754272545887,3.5253,3539.4,3539.3,2.589]
[1754272546087,3.5253,3539.4,3539.3,0.5123]
[1754272546287,3.5253,3539.1,3539.0,1.6762]
[1754272546485,4.09036,3539.1,3539.0,2.589]
[1754272546687,2.176,3539.4,3539.3,0.9128]
[1754272546892,2.7551,3539.4,3539.3,3.3187]
[1754272547290,3.5253,3539.4,3539.3,3.3187]
[1754272547593,2.74114,3538.6,3538.5,2.9041]
[1754272547785,3.5253,3538.6,3538.5,3.3187]
[1754272547989,2.7608,3538.6,3538.5,3.3187]
[1754272548188,4.09044,3538.6,3538.5,3.3187]
[1754272548396,4.09047,3538.4,3538.3,3.2078]
[1754272548587,4.09047,3538.4,3538.3,3.7201]
[1754272549291,4.09047,3538.4,3538.3,4.4694]
[1754272549589,4.09047,3538.4,3538.3,1.6762]
[1754272549790,4.09047,3538.4,3538.3,2.1948]
[1754272549990,4.09047,3538.4,3538.3,2.589]
[1754272550191,4.09047,3538.4,3538.3,1.2616]
[1754272550389,4.09047,3538.4,3538.3,0.5123]
[1754272550591,1.97672,3538.1,3538.0,22.141]
[1754272550796,2.7608,3538.1,3538.0,22.8707]
[1754272550992,3.5253,3538.7,3538.6,1.8397]
[1754272551192,3.5253,3538.7,3538.6,3.3187]
[1754272551993,4.09042,3538.7,3538.6,3.3187]
[1754272552495,3.5253,3538.7,3538.6,3.3187]
[1754272555199,3.5253,3538.7,3538.4,3.2078]
[1754272555200,3.5253,3538.5,3538.4,3.2078]
[1754272555509,2.7608,3538.3,3538.2,22.8707]
[1754272556400,2.7608,3538.3,3538.2,3.3187]
[1754272556602,3.5253,3538.3,3538.2,3.3187]
[1754272557199,3.5253,3538.3,3538.2,1.2616]
[1754272558302,3.5253,3538.3,3538.2,2.1948]
[1754272558499,3.5253,3538.3,3538.2,2.589]
[1754272559001,3.5253,3538.3,3538.2,3.3187]
[1754272559201,3.5253,3538.1,3538.0,3.7201]
[1754272559399,3.5253,3538.1,3538.0,4.988]
[1754272559603,3.5253,3538.1,3538.0,5.7968]
[1754272559794,3.5253,3538.1,3538.0,6.5265]
[1754272560308,2.7608,3538.1,3538.0,6.5265]
[1754272560508,0.3788,3538.1,3538.0,6.5265]
[1754272561003,1.3297,3538.3,3538.1,0.56522]
[1754272561204,3.5114,3538.3,3538.2,2.9041]
[1754272561403,4.0905,3538.3,3538.2,3.3187]
[1754272562606,3.5253,3538.3,3538.2,3.3187]
[1754272564807,3.5253,3538.3,3538.2,2.589]
[1754272565098,3.5253,3538.3,3538.2,1.2616]
[1754272565303,3.5253,3538.3,3538.2,0.5123]
[1754272567005,1.4115,3538.1,3538.0,3.9571]
[1754272567200,3.5253,3538.1,3538.0,3.9571]
[1754272567402,3.5253,3538.1,3538.0,4.884]
[1754272567603,3.5253,3538.1,3538.0,6.5265]
[1754272568205,3.5253,3538.1,3538.0,3.2078]
[1754272568608,3.5253,3538.1,3538.0,3.7201]
[1754272568805,3.5253,3538.1,3538.0,5.4026]
[1754272569008,3.5253,3538.1,3538.0,6.1323]
[1754272569809,3.5253,3538.1,3538.0,6.5265]
[1754272572708,3.5253,3538.1,3538.0,4.4694]
[1754272573913,3.5253,3538.1,3538.0,4.884]
[1754272574207,3.5253,3538.1,3538.0,6.5113]
[1754272574409,6.36685334,3538.8,3538.0,6.5113]
[1754272574410,3.4459,3538.4,3538.3,3.2459]
[1754272574817,4.01108,3538.4,3538.3,3.2459]
[1754272575804,0.56515,3538.6,3538.5,1.0334]
[1754272576008,4.01105,3538.6,3538.5,0.502]
[1754272576313,4.01107,3538.4,3538.3,0.502]
[1754272576910,4.01107,3538.4,3538.1,0.502]
[1754272576911,3.28,3538.2,3538.1,0.502]
[1754272577209,4.0111,3538.2,3538.1,0.502]
[1754272577409,4.0111,3538.2,3538.1,1.2596]
[1754272577608,3.4459,3538.2,3538.1,3.2459]
[1754272578520,1.90537,3538.4,3538.3,1.7875]
[1754272578826,3.27997,3538.4,3538.3,3.2459]
[1754272579815,4.01107,3538.4,3538.3,3.2459]
[1754272580917,4.01107,3538.4,3538.1,0.5652]
[1754272581119,3.4459,3538.1,3538.0,5.6961]
[1754272581517,3.4459,3538.1,3538.0,6.4537]
[1754272582014,3.4459,3538.1,3538.0,5.7529]
[1754272582213,3.4459,3538.1,3538.0,4.9988]
[1754272582415,3.4459,3538.1,3538.0,6.4537]
[1754272584027,0.56518,3538.4,3538.0,6.4537]
[1754272584028,0.7551,3538.5,3538.4,3.2459]
[1754272584315,1.7419,3538.5,3538.4,3.2459]
[1754272584522,2.7148,3538.5,3538.4,3.2459]
[1754272585521,3.4459,3538.5,3538.4,3.2459]
[1754272585711,0.5652,3538.3,3538.1,0.3929]
[1754272585917,3.4459,3538.2,3538.1,1.2596]
[1754272586513,2.7148,3538.2,3538.1,3.2459]
[1754272587519,3.4459,3538.2,3538.1,3.2459]
[1754272587719,3.27998,3538.4,3538.3,3.2459]
[1754272587921,4.01108,3538.4,3538.3,3.2459]
[1754272588823,4.01108,3538.4,3538.1,0.56521]
[1754272589023,1.93981,3538.2,3538.1,1.2596]
[1754272589223,1.93981,3538.2,3538.1,2.5451]
[1754272589428,1.3746,3538.2,3538.1,3.2459]
[1754272589725,3.4459,3538.2,3538.1,2.5451]
[1754272591122,3.4459,3538.2,3538.1,2.1839]
[1754272591527,3.4459,3538.2,3538.1,3.2459]
[1754272594622,3.4459,3538.2,3538.0,3.2078]
[1754272594828,3.4459,3538.0,3537.9,1.01753841]
[1754272595126,3.4459,3538.0,3537.9,2.27713841]
[1754272595525,3.4459,3538.0,3537.9,1.51953841]
[1754272595721,0.56523,3538.1,3537.9,1.01753841]
[1754272595926,4.01113,3538.1,3538.0,3.2459]
[1754272596324,3.4459,3538.1,3538.0,3.2459]
[1754272596723,3.4459,3538.1,3538.0,2.5451]
[1754272597438,3.4459,3538.1,3538.0,3.2459]